bitfinex/quotes_SOLUSD_20241001
["timestamp","ask_amount","ask_price","bid_price","bid_amount"]
[1727813707799,20.0,143.84,143.72,17.1920884]
[1727813707995,6.9574,143.73,143.72,0.9621884]
[1727813708221,6.9585,143.71,143.68,16.2299]
[1727813708735,6.9579,143.72,143.68,16.2299]
[1727813708919,6.9585,143.71,143.68,16.2299]
[1727813709125,20.0,143.75,143.68,16.2299]
[1727813709297,6.9579,143.73,143.68,16.2299]
[1727813709827,43.776884,143.78,143.68,16.2299]
[1727813710128,6.9575,143.73,143.68,16.2299]
[1727813710318,6.9576,143.73,143.68,16.2299]
[1727813710714,17.3895,143.77,143.68,16.2299]
[1727813710913,6.9584,143.71,143.68,16.2299]
[1727813711107,17.3895,143.77,143.68,16.2299]
[1727813711421,20.0,143.73,143.68,16.2299]
[1727813711727,6.959,143.7,143.68,16.2299]
[1727813711907,6.958,143.72,143.68,16.2299]
[1727813712599,43.776884,143.76,143.68,16.2299]
[1727813712811,6.958,143.72,143.68,16.2299]
[1727813713013,20.0,143.76,143.68,16.2299]
[1727813713220,6.9578,143.73,143.68,16.2299]
[1727813713730,6.9585,143.71,143.68,16.2299]
[1727813713906,41.168984,143.75,143.68,16.2299]
[1727813714230,6.9594,143.69,143.68,16.2299]
[1727813714403,6.9593,143.7,143.68,16.2299]
[1727813715219,17.3943,143.73,143.68,16.2299]
[1727813715401,6.9594,143.69,143.68,16.2299]
[1727813715599,37.3905,143.76,143.68,16.2299]
[1727813715805,6.9585,143.71,143.68,16.2299]
[1727813717022,37.3905,143.76,143.68,16.2299]
[1727813717205,6.9586,143.71,143.68,16.2299]
[1727813717527,6.9589,143.7,143.68,16.2299]
[1727813717733,20.0,143.76,143.68,16.2299]
[1727813718021,6.959,143.7,143.68,16.2299]
[1727813718201,20.0,143.73,143.68,16.2299]
[1727813718808,6.9591,143.7,143.68,16.2299]
[1727813719011,6.958,143.72,143.68,16.2299]
[1727813719431,42.03045664,143.78,143.68,16.2299]
[1727813719616,6.957,143.74,143.68,16.2299]
[1727813720041,6.9574,143.73,143.68,16.2299]
[1727813721036,20.0,143.76,143.68,16.2299]
[1727813721433,6.958,143.72,143.68,16.2299]
[1727813722541,6.9576,143.73,143.68,16.2299]
[1727813723039,6.9563,143.76,143.68,16.2299]
[1727813723242,7.25495664,143.78,143.68,17.62162053]
[1727813723424,6.9566,143.75,143.68,16.2299]
[1727813723617,6.9561,143.76,143.68,16.2299]
[1727813723833,6.9565,143.75,143.68,16.2299]
[1727813724142,6.9549,143.79,143.69,1.39167198]
[1727813724437,1.20121943,143.82,143.73,15.3719]
[1727813724954,6.9523,143.84,143.73,15.3719]
[1727813725250,7.25558954,143.88,143.8,15.8158]
[1727813725424,0.90666567,144.0,143.81,29.781884]
[1727813725628,7.25197452,143.99,143.81,6.005]
[1727813726443,6.9488,143.91,143.81,6.005]
[1727813726737,17.3664,143.96,143.82,1.39018768]
[1727813727044,17.3664,143.96,143.83,15.2651]
[1727813727249,17.3664,143.96,143.84,1.39012187]
[1727813727540,7.25197452,143.99,143.84,1.39012187]
[1727813727735,7.25197452,143.99,143.83,15.2651]
[1727813727945,6.9478,143.93,143.83,15.2651]
[1727813728240,7.25197452,143.99,143.87,38.91473767]
[1727813728435,0.3476061,144.0,143.93,38.91473767]
[1727813728638,0.3476061,144.0,143.94,6.1877]
[1727813728846,7.24002431,144.1,143.94,6.1877]
[1727813729143,6.78853507,144.09,143.96,38.91473767]
[1727813729345,17.90645957,144.12,143.96,38.91473767]
[1727813729552,6.9411,144.07,143.96,38.91473767]
[1727813729752,7.24062895,144.13,143.98,15.8372]
[1727813729753,6.79326516,144.11,143.98,15.8372]
[1727813729950,356.05097294,144.22,143.98,15.8372]
[1727813729951,6.9373,144.15,144.03,6.2096]
[1727813730134,6.9373,144.15,144.04,1.38806491]
[1727813730330,6.9366,144.17,144.05,54.75193767]
[1727813730634,17.3377,144.2,144.05,15.8372]
[1727813730827,17.3377,144.2,144.06,1.38808751]
[1727813731031,7.7526703,144.14,144.05,15.8372]
[1727813731752,0.8149703,144.14,144.05,15.8372]
[1727813732928,0.8149703,144.14,144.06,1.38796945]
[1727813733330,0.8149703,144.14,144.05,15.8372]
[1727813733945,0.8149703,144.14,144.06,1.38777681]
[1727813734633,0.8149703,144.14,144.07,63.22912556]
[1727813734822,0.8149703,144.14,144.08,1.38769247]
[1727813735024,6.9382,144.13,144.05,15.8372]
[1727813735735,7.7526703,144.14,144.05,15.8372]
[1727813736033,0.8149703,144.14,144.05,15.8372]
[1727813736424,6.9401,144.09,144.05,15.8372]
[1727813736625,6.9396,144.1,144.05,15.8372]
[1727813736825,20.8149703,144.14,144.05,15.8372]
[1727813737048,6.9402,144.09,144.05,15.8372]
[1727813738149,0.8149703,144.14,144.05,15.8372]
[1727813738445,6.9397,144.1,144.05,15.8372]
[1727813738776,0.8149703,144.14,144.05,15.8372]
[1727813738932,6.9384,144.13,144.05,15.8372]
[1727813739134,6.9387,144.12,144.05,15.8372]
[1727813739842,6.9387,144.12,144.05,17.22546088]
[1727813740243,0.8149703,144.14,144.05,17.22546088]
[1727813741135,7.24344127,144.22,144.05,17.22546088]
[1727813741340,7.24344127,144.22,144.1,63.22912556]
[1727813741533,17.3333,144.24,144.1,63.22912556]
[1727813741937,6.9347,144.21,144.1,63.22912556]
[1727813742260,41.90010051,144.27,144.11,6.4046]
[1727813742261,59.22870051,144.27,144.11,6.4046]
[1727813742457,6.9344,144.21,144.11,6.4046]
[1727813742628,6.9353,144.19,144.11,6.4046]
[1727813742824,41.90010051,144.27,144.11,6.4046]
[1727813743034,6.9347,144.21,144.11,6.4046]
[1727813743252,6.9344,144.21,144.12,79.74332556]
[1727813743459,6.9338,144.22,144.12,79.74332556]
[1727813743837,6.9338,144.22,144.12,109.74332556]
[1727813744247,0.8149703,144.29,144.15,63.22912556]
[1727813744248,6.9324,144.25,144.15,63.22912556]
[1727813744464,6.9324,144.25,144.16,1.38700864]
[1727813744658,6.9329,144.24,144.16,1.38700864]
[1727813745227,6.9341,144.22,144.12,109.74332556]
[1727813745433,8.05432784,144.29,144.13,30.0]
[1727813745648,6.9353,144.19,144.12,16.5142]
[1727813745839,6.9348,144.2,144.12,16.5142]
[1727813746638,6.9348,144.2,144.13,30.0]
[1727813746973,17.3358,144.21,144.13,30.0]
[1727813747250,17.3358,144.21,144.12,16.5142]
[1727813747251,6.9376,144.14,144.12,16.5142]
[1727813747469,6.9372,144.15,144.12,16.5142]
[1727813748343,6.9377,144.14,144.12,16.5142]
[1727813748738,43.776884,144.2,144.12,16.5142]
[1727813749145,6.9377,144.14,144.12,16.5142]
[1727813749837,5.4377,144.14,144.12,16.5142]
[1727813750534,6.9374,144.15,144.12,16.5142]
[1727813751742,6.9381,144.13,144.12,16.5142]
[1727813752069,17.3426,144.16,144.06,6.5003]
[1727813752248,20.0,144.15,144.06,7.88837193]
[1727813752758,6.9382,144.13,144.06,7.88837193]
[1727813753133,6.9382,144.13,144.07,30.0]
[1727813753339,17.3426,144.16,144.07,30.0]
[1727813753556,6.9386,144.12,144.07,30.0]
[1727813753777,6.9386,144.12,144.06,7.88833674]
[1727813754565,34.6703,144.22,144.06,6.5003]
[1727813754860,6.9366,144.17,144.06,6.5003]
[1727813755059,6.9353,144.19,144.07,23.776884]
[1727813755264,6.9353,144.19,144.08,38.91955501]
[1727813755474,17.3311,144.25,144.11,45.18175501]
[1727813755642,7.23862659,144.26,144.12,1.38715673]
[1727813755842,6.9329,144.24,144.12,31.38715673]
[1727813756152,6.9333,144.23,144.12,1.38715673]
[1727813756555,6.9329,144.24,144.13,23.776884]
[1727813756873,6.9325,144.25,144.15,16.2052]
[1727813757047,6.9318,144.27,144.15,16.2052]
[1727813757252,6.9318,144.27,144.16,1.38679248]
[1727813757449,6.9314,144.28,144.18,6.3719]
[1727813757661,0.8149703,144.29,144.19,1.38660062]
[1727813757662,7.7455703,144.29,144.19,1.38660062]
[1727813757977,7.7455703,144.29,144.18,6.3719]
[1727813757978,6.931,144.28,144.18,6.3719]
[1727813758150,7.7453703,144.29,144.19,1.38651426]
[1727813758456,0.8149703,144.29,144.19,1.38651426]
[1727813759169,7.7454703,144.29,144.18,6.3719]
[1727813759358,6.9316,144.27,144.19,30.0]
[1727813759669,6.9315,144.27,144.19,30.0]
[1727813759861,0.8149703,144.29,144.19,30.0]
[1727813760065,6.9318,144.27,144.19,31.38666024]
[1727813760268,0.8149703,144.29,144.19,31.38666024]
[1727813760646,0.8149703,144.29,144.19,30.0]
[1727813760847,6.932,144.26,144.18,6.3719]
[1727813761047,0.8149703,144.29,144.19,1.3867538]
[1727813761279,0.8149703,144.29,144.18,6.3719]
[1727813761280,0.8149703,144.29,144.2,1.38657064]
[1727813761455,6.9315,144.27,144.2,1.38657064]
[1727813761879,0.8149703,144.29,144.2,1.38657064]
[1727813762076,7.7454703,144.29,144.18,6.3719]
[1727813762384,7.7454703,144.29,144.19,64.49796442]
[1727813762385,0.8149703,144.29,144.19,64.49796442]
[1727813762677,0.8149703,144.29,144.18,6.3719]
[1727813762678,6.9314,144.27,144.18,6.3719]
[1727813762856,0.8149703,144.29,144.18,6.3719]
[1727813763062,6.9324,144.25,144.18,6.3719]
[1727813763375,6.9325,144.25,144.19,1.38681023]
[1727813763596,6.9352,144.2,144.15,16.2052]
[1727813763779,23.776884,144.23,144.15,16.2052]
[1727813764077,20.0,144.2,144.1,22.372]
[1727813764284,6.9376,144.14,144.1,22.372]
[1727813764572,43.776884,144.2,144.1,15.9253]
[1727813764573,6.9382,144.13,144.1,15.9253]
[1727813764755,6.9369,144.16,144.1,15.9253]
[1727813764948,1.19863987,144.22,144.11,1.38771358]
[1727813765172,6.936,144.18,144.1,15.9253]
[1727813765572,6.9352,144.2,144.1,15.9253]
[1727813765870,23.776884,144.22,144.1,15.9253]
[1727813765871,20.0,144.21,144.1,15.9253]
[1727813766071,23.776884,144.18,144.1,15.9253]
[1727813766368,20.0,144.19,144.1,15.9253]
[1727813766673,6.9372,144.15,144.1,15.9253]
[1727813766869,20.0,144.19,144.1,15.9253]
[1727813766870,6.9368,144.16,144.1,15.9253]
[1727813767076,6.9363,144.17,144.1,15.9253]
[1727813767283,6.9368,144.16,144.1,15.9253]
[1727813767479,6.9363,144.17,144.1,15.9253]
[1727813767676,6.9341,144.22,144.11,1.38774988]
[1727813767886,20.0,144.23,144.1,15.9253]
[1727813767887,6.9348,144.2,144.1,15.9253]
[1727813768092,6.9342,144.22,144.1,15.9253]
[1727813768691,6.9344,144.21,144.1,15.9253]
[1727813769386,6.9337,144.23,144.12,6.1589]
[1727813769584,7.23385055,144.25,144.12,6.1589]
[1727813769902,6.9338,144.22,144.12,6.1589]
[1727813770773,7.1871488,144.22,144.12,6.1589]
[1727813771177,6.6871488,144.22,144.12,6.1589]
[1727813771884,0.2533488,144.22,144.12,6.1589]
[1727813773283,0.2533488,144.22,144.13,23.776884]
[1727813774888,0.2533488,144.22,144.14,16.1861]
[1727813776002,6.9344,144.21,144.14,16.1861]
[1727813776198,0.2533488,144.22,144.14,16.1861]
[1727813776504,6.82815927,144.21,144.14,16.1861]
[1727813776703,0.2533488,144.22,144.09,15.6278]
[1727813776704,23.776884,144.19,144.09,15.6278]
[1727813777006,6.9379,144.14,144.09,15.6278]
[1727813777183,20.0,144.17,144.09,15.6278]
[1727813777380,6.82547701,144.16,144.09,15.6278]
[1727813777596,20.0,144.17,144.09,15.6278]
[1727813777793,6.82264353,144.16,144.09,15.6278]
[1727813777997,6.938,144.14,144.09,15.6278]
[1727813778780,6.9382,144.13,144.09,15.6278]
[1727813779289,6.9402,144.09,144.04,16.0272]
[1727813779802,6.9392,144.11,144.04,16.0272]
[1727813780013,6.9378,144.14,144.05,1.38816154]
[1727813780189,26.9372,144.15,144.05,1.38816154]
[1727813780405,6.9368,144.16,144.05,1.38816154]
[1727813780585,26.9362,144.18,144.06,23.776884]
[1727813780899,6.82166645,144.17,144.06,23.776884]
[1727813781094,0.2533488,144.22,144.05,23.776884]
[1727813781308,6.938,144.14,144.05,23.776884]
[1727813781683,6.938,144.14,144.04,16.0272]
[1727813781891,6.938,144.14,144.05,1.38787113]
[1727813782195,6.938,144.14,144.04,16.0272]
[1727813782196,6.9397,144.1,144.04,16.0272]
[1727813782506,20.0,144.16,144.04,16.0272]
[1727813782507,6.9395,144.11,144.04,16.0272]
[1727813782714,20.0,144.14,144.04,16.0272]
[1727813782885,6.9387,144.12,144.04,16.0272]
[1727813783085,6.9393,144.11,144.04,16.0272]
[1727813783292,6.9386,144.12,144.04,16.0272]
[1727813783489,20.0,144.14,144.04,16.0272]
[1727813783823,20.0,144.17,144.05,23.776884]
[1727813783992,20.0,144.17,144.04,16.0272]
[1727813784190,6.938,144.14,144.04,16.0272]
[1727813784389,20.0,144.17,144.04,16.0272]
[1727813784589,6.9378,144.14,144.04,16.0272]
[1727813784783,54.6814,144.17,144.04,16.0272]
[1727813784983,6.9397,144.1,144.04,16.0272]
[1727813785206,17.3447,144.14,144.04,16.0272]
[1727813785410,6.9392,144.11,144.04,16.0272]
[1727813786116,6.9387,144.12,144.04,16.0272]
[1727813786507,20.0,144.15,144.04,16.0272]
[1727813786709,6.9409,144.08,144.04,16.0272]
[1727813787014,6.9401,144.09,144.04,16.0272]
[1727813787390,6.9405,144.09,144.04,16.0272]
[1727813788721,20.0,144.12,144.04,16.0272]
[1727813788893,6.9392,144.11,144.04,16.0272]
[1727813789091,6.9387,144.12,144.05,1.38818969]
[1727813789395,7.23194222,144.16,144.04,16.0272]
[1727813789601,6.9405,144.08,144.04,16.0272]
[1727813789799,7.23194222,144.16,144.04,16.0272]
[1727813789991,6.942,144.05,144.04,16.0272]
[1727813790188,6.9432,144.03,143.97,6.6105]
[1727813790407,6.942,144.05,143.97,6.6105]
[1727813790712,6.9439,144.01,143.97,6.6105]
[1727813791094,20.0,144.03,143.93,23.0568]
[1727813791293,6.9458,143.97,143.93,23.0568]
[1727813791511,6.9452,143.99,143.93,23.0568]
[1727813791699,6.9455,143.98,143.93,23.0568]
[1727813792009,20.0,144.03,143.94,1.38950131]
[1727813792216,20.0,144.01,143.93,23.0568]
[1727813792511,6.9468,143.95,143.93,23.0568]
[1727813792814,6.9478,143.93,143.88,22.6402]
[1727813793518,6.9473,143.94,143.88,22.6402]
[1727813794514,20.0,143.95,143.89,1.38991719]
[1727813794695,26.9469,143.95,143.88,22.6402]
[1727813795015,26.9469,143.95,143.88,15.9933]
[1727813795016,6.9478,143.94,143.88,15.9933]
[1727813795215,17.3625,143.99,143.88,15.9933]
[1727813795216,20.0,143.96,143.88,15.9933]
[1727813795389,41.142384,143.97,143.88,15.9933]
[1727813795594,6.9472,143.95,143.88,15.9933]
[1727813795815,20.0,143.96,143.88,15.9933]
[1727813796025,6.9478,143.93,143.88,15.9933]
[1727813796390,20.0,143.97,143.88,15.9933]
[1727813796621,6.9472,143.95,143.88,15.9933]
[1727813796814,6.9473,143.94,143.88,15.9933]
[1727813797019,20.0,143.97,143.88,15.9933]
[1727813797218,6.9469,143.95,143.88,15.9933]
[1727813797410,6.9477,143.94,143.88,15.9933]
[1727813797798,20.0,143.97,143.88,15.9933]
[1727813798120,6.9478,143.93,143.88,15.9933]
[1727813798303,20.0,143.96,143.88,15.9933]
[1727813798623,6.9488,143.91,143.88,15.9933]
[1727813799003,6.9482,143.93,143.88,15.9933]
[1727813799208,20.0,143.94,143.88,15.9933]
[1727813799401,6.9479,143.93,143.88,15.9933]
[1727813799721,20.14696887,143.97,143.83,6.6266878]
[1727813799722,6.9496,143.9,143.83,22.1748878]
[1727813799930,6.9486,143.92,143.83,22.1748878]
[1727813800921,6.9483,143.92,143.83,22.1748878]
[1727813801123,6.9465,143.96,143.84,25.16698577]
[1727813801326,4.55089466,144.0,143.83,85.60268904]
[1727813801495,17.3646,143.98,143.83,85.60268904]
[1727813801702,6.9467,143.96,143.84,1.38993208]
[1727813801921,17.3646,143.98,143.83,85.60268904]
[1727813802103,17.3646,143.98,143.84,1.38993073]
[1727813802305,20.0,143.98,143.85,23.776884]
[1727813802506,22.78166887,144.0,143.86,1.38983389]
[1727813802714,20.0,143.97,143.86,1.38983389]
[1727813802912,18.56975632,144.01,143.87,40.108984]
[1727813803116,6.9478,143.93,143.87,16.3321]
[1727813803424,24.61370083,143.99,143.87,16.3321]
[1727813803614,24.61370083,143.99,143.88,1.38974684]
[1727813804120,6.9455,143.98,143.88,1.38974684]
[1727813804329,14.19520083,143.99,143.88,23.776884]
[1727813804499,6.9449,143.99,143.88,23.776884]
[1727813804694,7.24920095,144.04,143.89,6.6625]
[1727813804923,7.24920095,144.04,143.87,16.3321]
[1727813804924,7.24920095,144.04,143.87,22.9946]
[1727813805107,6.9464,143.96,143.88,1.3896953]
[1727813805314,6.9478,143.93,143.87,22.9946]
[1727813806353,6.9473,143.94,143.87,22.9946]
[1727813806622,20.0,143.97,143.88,1.38992726]
[1727813806823,6.9463,143.96,143.88,1.38992726]
[1727813807011,6.9463,143.96,143.87,22.9946]
[1727813807203,6.9463,143.97,143.87,22.9946]
[1727813807619,17.3602,144.01,143.87,22.9946]
[1727813807827,2.78392528,144.03,143.88,23.776884]
[1727813808120,6.9445,144.0,143.88,87.20468524]
[1727813808722,6.9443,144.01,143.88,87.20468524]
[1727813809018,20.0,144.01,143.87,22.9946]
[1727813809205,6.9482,143.93,143.87,22.9946]
[1727813809531,6.9477,143.94,143.87,22.9946]
[1727813809704,6.9468,143.96,143.87,22.9946]
[1727813810024,7.98941624,144.0,143.88,1.38985842]
[1727813810236,6.9459,143.97,143.88,1.38985842]
[1727813810427,6.9464,143.96,143.88,1.38985842]
[1727813810626,7.98941624,144.03,143.87,22.9946]
[1727813810918,6.9449,144.0,143.88,23.776884]
[1727813811111,6.944,144.01,143.89,1.38929669]
[1727813811314,6.9458,143.98,143.87,22.9946]
[1727813811617,6.9479,143.93,143.87,22.9946]
[1727813811820,6.9474,143.94,143.87,22.9946]
[1727813812223,6.9479,143.93,143.87,22.9946]
[1727813812932,6.9488,143.91,143.87,22.9946]
[1727813813237,2.79901033,143.98,143.87,22.9946]
[1727813813238,20.0,143.98,143.87,22.9946]
[1727813813613,6.9458,143.98,143.87,22.9946]
[1727813813857,6.90415957,144.06,143.88,1.38946046]
[1727813814037,6.90415957,144.06,143.93,63.42780124]
[1727813814038,8.45776791,144.05,143.93,63.42780124]
[1727813814337,6.77415957,144.11,143.93,63.42780124]
[1727813814338,6.2151,144.11,143.96,6.5046]
[1727813814537,6.9413,144.07,143.97,1.38869332]
[1727813815039,17.3469,144.12,143.96,69.93240124]
[1727813815040,6.9415,144.06,143.96,69.93240124]
[1727813815230,6.9415,144.06,143.96,6.5046]
[1727813815836,34.6936,144.12,143.96,6.5046]
[1727813816041,20.0,144.11,143.96,6.5046]
[1727813816258,6.9436,144.02,143.96,6.5046]
[1727813817724,6.9439,144.01,143.96,6.5046]
[1727813818346,17.3506,144.09,143.97,1.3891656]
[1727813818641,6.9433,144.03,143.96,6.5046]
[1727813819023,23.776884,144.1,143.96,6.5046]
[1727813819024,6.9435,144.02,143.96,6.5046]
[1727813819431,17.3534,144.07,143.97,1.38901704]
[1727813819732,17.3534,144.07,143.96,6.5046]
[1727813820028,6.9426,144.04,143.96,6.5046]
[1727813820233,6.9415,144.07,143.97,1.38893916]
[1727813820421,6.9415,144.07,143.96,6.5046]
[1727813820624,17.3496,144.1,143.97,23.776884]
[1727813820928,6.9421,144.05,143.96,6.5046]
[1727813821128,6.9415,144.06,143.97,1.38876919]
[1727813821356,6.9415,144.06,143.98,1.38868999]
[1727813821357,6.942,144.06,143.98,1.38868999]
[1727813821544,6.9426,144.04,143.96,6.5046]
[1727813821847,17.3519,144.08,143.96,6.5046]
[1727813822162,17.3519,144.08,143.96,23.994084]
[1727813822163,6.9416,144.06,143.96,23.994084]
[1727813822536,17.3519,144.08,143.96,23.994084]
[1727813822844,6.9394,144.11,144.0,23.776884]
[1727813823147,7.23896868,144.14,143.99,54.10882447]
[1727813823345,6.9392,144.11,144.0,23.776884]
[1727813823731,6.2151,144.16,144.0,23.776884]
[1727813824036,6.9391,144.11,144.0,23.776884]
[1727813824349,6.9411,144.07,143.99,15.1429]
[1727813824535,6.9411,144.07,144.01,1.38815708]
[1727813824927,17.3462,144.13,144.01,1.38815708]
[1727813825254,17.3462,144.13,143.99,15.1429]
[1727813825255,6.9385,144.13,144.03,22.5655]
[1727813825452,6.939,144.12,144.03,22.5655]
[1727813825772,6.9368,144.16,144.05,23.776884]
[1727813826251,6.9361,144.18,144.07,23.776884]
[1727813826552,1.46173541,144.19,144.07,23.776884]
[1727813826725,6.81425701,144.18,144.07,23.776884]
[1727813826931,1.46173541,144.19,144.07,23.776884]
[1727813827238,6.81257251,144.18,144.07,23.776884]
[1727813827445,6.9361,144.18,144.08,6.2398]
[1727813827827,17.3413,144.17,144.08,6.2398]
[1727813828038,6.9391,144.11,144.08,6.2398]
[1727813828637,6.9399,144.1,144.08,6.2398]
[1727813828874,6.9392,144.11,144.08,6.2398]
[1727813829019,17.3442,144.15,144.08,6.2398]
[1727813829228,17.3442,144.15,144.06,15.761]
[1727813829229,6.9401,144.09,144.06,15.761]
[1727813829449,6.941,144.07,144.06,15.761]
[1727813830026,23.776884,144.14,144.06,15.761]
[1727813830234,20.0,144.1,144.06,15.761]
[1727813830421,6.9421,144.05,144.01,15.1428]
[1727813830847,6.9425,144.04,144.01,15.1428]
[1727813831054,20.0,144.07,144.01,15.1428]
[1727813831232,6.9424,144.05,144.01,15.1428]
[1727813831851,20.0,144.07,144.01,15.1428]
[1727813833155,6.9416,144.06,144.01,15.1428]
[1727813833669,6.9415,144.06,144.01,15.1428]
[1727813833844,20.0,144.11,144.02,1.38865578]
[1727813834166,20.0,144.11,144.01,15.1428]
[1727813834167,6.9406,144.08,144.01,15.1428]
[1727813835667,6.9402,144.09,144.01,15.1428]
[1727813835863,58.606,144.15,144.02,1.388347]
[1727813836099,9.16443032,144.17,144.04,23.776884]
[1727813836100,8.60537075,144.17,144.04,23.776884]
[1727813836374,13.76292338,144.16,144.06,15.5454]
[1727813836559,6.9374,144.15,144.07,1.38771475]
[1727813836745,6.82592338,144.14,144.07,1.38771475]
[1727813836945,6.9367,144.16,144.07,1.38771475]
[1727813837168,6.82838849,144.15,144.06,15.5454]
[1727813837366,17.5921488,144.19,144.06,15.5454]
[1727813837558,20.0,144.17,144.06,15.5454]
[1727813837758,6.9379,144.14,144.06,15.5454]
[1727813838272,6.9373,144.15,144.06,15.5454]
[1727813838567,6.9373,144.15,144.07,1.38776599]
[1727813838780,0.2533488,144.19,144.07,23.776884]
[1727813838950,6.82965403,144.18,144.1,15.1696]
[1727813839154,0.2533488,144.19,144.12,23.776884]
[1727813839475,0.2533488,144.19,144.11,23.776884]
[1727813840183,6.9358,144.18,144.1,15.1696]
[1727813840475,7.1886488,144.19,144.1,15.1696]
[1727813840851,0.2533488,144.19,144.1,15.1696]
[1727813841071,6.9367,144.16,144.1,15.1696]
[1727813841376,0.2533488,144.19,144.1,15.1696]
[1727813841551,0.2533488,144.19,144.11,1.38742755]
[1727813841751,7.1886488,144.19,144.11,1.38742755]
[1727813842053,0.2533488,144.19,144.1,15.1696]
[1727813842574,0.2533488,144.19,144.11,1.387432]
[1727813842777,0.2533488,144.19,144.1,54.13552447]
[1727813842949,7.1887488,144.19,144.1,15.1696]
[1727813843351,6.9367,144.16,144.1,15.1696]
[1727813843686,20.0,144.18,144.1,15.1696]
[1727813843873,0.2533488,144.19,144.1,15.1696]
[1727813844467,7.1890488,144.19,144.1,15.1696]
[1727813844977,7.1890488,144.19,144.11,1.38732417]
[1727813845177,6.9364,144.17,144.1,15.1696]
[1727813845380,6.9367,144.16,144.1,15.1696]
[1727813845684,6.9371,144.16,144.1,15.1696]
[1727813846068,17.34,144.18,144.1,15.1696]
[1727813846272,6.9382,144.13,144.1,15.1696]
[1727813846460,20.0,144.17,144.1,15.1696]
[1727813846666,6.9372,144.15,144.1,15.1696]
[1727813846960,20.0,144.17,144.1,15.1696]
[1727813847160,6.9368,144.16,144.1,15.1696]
[1727813847562,6.9363,144.17,144.1,15.1696]
[1727813847762,0.2533488,144.19,144.1,15.1696]
[1727813848063,6.9358,144.18,144.1,15.1696]
[1727813848271,0.2533488,144.19,144.1,15.1696]
[1727813848272,7.1890488,144.19,144.1,15.1696]
[1727813849283,0.2533488,144.19,144.1,15.1696]
[1727813849591,6.9372,144.15,144.1,15.1696]
[1727813849777,6.9377,144.14,144.1,15.1696]
[1727813849984,41.3688328,144.19,144.1,15.1696]
[1727813849985,6.9391,144.11,144.1,15.1696]
[1727813850186,6.5333,144.18,144.05,6.654]
[1727813850187,6.9403,144.09,144.05,15.7859]
[1727813850488,6.9397,144.1,144.05,15.7859]
[1727813850662,6.9368,144.16,144.06,1.38820801]
[1727813850865,20.0,144.18,144.05,15.7859]
[1727813851061,6.9373,144.15,144.05,15.7859]
[1727813851275,20.0,144.18,144.05,15.7859]
[1727813851477,0.2533488,144.19,144.06,22.5856]
[1727813851683,0.2533488,144.19,144.07,23.776884]
[1727813851875,0.2533488,144.19,144.08,38.96592447]
[1727813852084,0.2533488,144.19,144.1,16.5007]
[1727813852276,0.2533488,144.19,144.14,17.3438]
[1727813852277,6.9359,144.18,144.14,17.3438]
[1727813852787,0.2533488,144.19,144.1,16.5007]
[1727813852968,6.9363,144.17,144.1,16.5007]
[1727813853166,0.2533488,144.19,144.1,16.5007]
[1727813853378,6.9373,144.15,144.1,16.5007]
[1727813853568,20.0,144.17,144.1,16.5007]
[1727813854188,6.9363,144.17,144.1,16.5007]
[1727813854492,0.2533488,144.19,144.11,1.38761671]
[1727813854687,0.2533488,144.19,144.1,16.5007]
[1727813855878,6.9373,144.15,144.1,16.5007]
[1727813856203,6.9367,144.16,144.1,16.5007]
[1727813856382,6.9386,144.13,144.1,16.5007]
[1727813856587,6.941,144.07,144.05,16.1949]
[1727813856798,17.3474,144.12,144.05,16.1949]
[1727813857494,6.9397,144.1,144.05,16.1949]
[1727813857678,17.3474,144.12,144.05,16.1949]
[1727813857679,6.9406,144.08,144.05,16.1949]